Cogmind - Beta 15 @@@ ROGUE MODE // 2025.08.26 @ 23:27:03 Player: NQH Result: Destroyed by G-34 Mercenary with Small Laser Performance ------------- Evolutions (0) 0 Regions Visited (1) 200 Robots Destroyed (12) 60 Value Destroyed (121) 121 Prototype IDs (0) 0 Alien Tech Used (0) 0 Bonus (0) 0 TOTAL SCORE: 381 Bonus ------- None Cogmind --------- Core Integrity 0/250 Matter 235/300 Energy 100/100 System Corruption 0% Temperature Cool (6) Movement Core (150) Ox2 Location -10/Materials Parts ------- > --- POWER (1) -------- (None) > --- PROPULSION (2) --- (None) > --- UTILITY (2) ------ Small Storage Unit > --- WEAPON (2) ------- Mining Claw > --- INVENTORY (8) ---- Light Assault Rifle Light Assault Rifle Light Assault Rifle Light Assault Rifle Datajack Datajack Datajack Peak State ------------ > --- POWER ------------ Ion Engine > --- PROPULSION ------- Light Treads Light Treads > --- UTILITY ---------- Small Storage Unit Improved Terrain Scanner > --- WEAPON ----------- Light Assault Rifle Light Assault Rifle > --- INVENTORY -------- (None) [Rating: 9] Favorites ----------- Power Ion Engine Engine Ion Engine Propulsion Light Treads Treads Light Treads Flight Unit Flight Unit Utility Small Storage Unit Device Improved Terrain Scanner Storage Small Storage Unit Weapon Light Assault Rifle Ballistic Gun Light Assault Rifle Slashing Weapon Mining Claw Build | -11 -10 ------- Run | Yrd Mat Slots Evolved . | . . Power . | . . Propulsion . | . . Utility . | . . Weapon . | . . Parts Attached 15 | 7 8 Power 3 | 1 2 Engine 3 | 1 2 Core . | . . Reactor . | . . Propulsion 6 | 2 4 Treads 2 | 2 . Leg . | . . Wheel . | . . Hover . | . . Flight 4 | . 4 Utility 2 | 2 . Device 1 | 1 . Storage 1 | 1 . Processor . | . . Hackware . | . . Protection . | . . Artifact . | . . Weapon 4 | 2 2 Energy Gun . | . . Energy Cannon . | . . Ballistic Gun 3 | 2 1 Ballistic Cannon . | . . Launcher . | . . Special Weapon . | . . Impact Weapon . | . . Slashing Weapon 1 | . 1 Piercing Weapon . | . . Special Melee Weapon . | . . Unidentified Prototypes . | . . Parts Lost 6 | . 6 Power 1 | . 1 Propulsion 4 | . 4 Utility 1 | . 1 Weapon . | . . Highest Loss Streak 5 | . 5 To Critical Strikes . | . . Average Backups 2 | . 3 Power . | . . Propulsion . | . . Utility . | . . Weapon 1 | . 1 Tool/Special . | . . Unused Backups 4 | . 4 Power . | . . Propulsion . | . . Utility . | . . Weapon 1 | . 1 Tool/Special 3 | . 3 Average Slot Usage (%) 87 | . 87 Engine 9 | . 9 Treads 16 | . 16 Flight 10 | . 10 Device 13 | . 13 Storage 14 | . 14 Ballistic Gun 12 | . 12 Slashing Weapon 9 | . 9 Peak Build Rating 9 | 9 9 Average Rating 7 | 5 7 On Entrance 4 | . 9 Naked Turns . | . . Heaviest Build 14 | 13 14 Greatest Support 40 | 40 40 Greatest Overweight (x) 4 | 1 4 Average Overweight (x) . | . . Largest Inventory Capacity 8 | 8 8 Average Capacity 7 | 7 8 Most Carried 8 | . 8 Average Carried 2 | . 3 Final Capacity 8 | 8 8 Final Carried 7 | . 7 Class Distribution -------------------- 100% | Mutant Dominant Class ---------------- Mutant | -10/Materials Resources | -11 -10 ----------- Run | Yrd Mat Matter Collected 386 | 294 92 Remotely . | . . Salvage Created 353 | 155 198 Parts 28 | 11 17 Haulers Intercepted . | . . Recyclers Shooed 2 | . 2 Parts Field Recycled . | . . Retrieved Matter . | . . Parts Self-Destructed . | . . Prevented . | . . Kills | -11 -10 ------- Run | Yrd Mat Combat Hostiles Destroyed 7 | . 7 Melee 1 | . 1 Guns 6 | . 6 Classes Destroyed 5 | 3 2 Worker 1 | 1 . Tunneler 2 | 2 . Recycler 2 | 1 1 Swarmer 6 | . 6 Grunt 1 | . 1 Best Kill Streak 3 | 2 3 Combat Bots Only 3 | . 3 Max Kills in Single Turn 1 | 1 1 Gunslinging . | . . Exploded . | . . Melee 1 | . 1 Uniques/NPCs Destroyed . | . . Combat | -11 -10 -------- Run | Yrd Mat Hostile Shots Fired 106 | . 106 Missed 26 | . 26 Hits 80 | . 80 Projectile 80 | . 80 Damage Taken 771 | . 771 Core 259 | . 259 Absorbed by Shields . | . . Core Remaining (%) 100 | 100 . Volleys Fired 32 | 12 20 Largest 2 | 2 2 Hottest 40 | 40 40 Shots Fired 51 | 24 27 Gun 51 | 24 27 Cannon . | . . Launcher . | . . Special . | . . Kinetic 51 | 24 27 Thermal . | . . Explosive . | . . Electromagnetic . | . . Robot Hit Streak 9 | 9 5 Robot Miss Streak 5 | 2 5 Penetration Max . | . . Secondary Targets . | . . Shots Hit Robots 37 | 14 23 Core Hits 16 | 7 9 Critical Kills . | . . Critical Parts Destroyed . | . . Critical Strikes . | . . Melee Attacks 15 | . 15 Impact . | . . Slashing 15 | . 15 Piercing . | . . Sneak Attacks 2 | . 2 Combat Hostiles . | . . Follow-up Attacks . | . . Damage Inflicted 454 | 103 351 Guns 215 | 103 112 Cannons . | . . Explosions . | . . Melee 239 | . 239 Ramming . | . . Kinetic 215 | 103 112 Thermal . | . . Explosive . | . . Electromagnetic . | . . Impact . | . . Slashing 239 | . 239 Piercing . | . . Highest Corruption . | . . Average Corruption . | . . Corruption Purged . | . . Corruption Blocked . | . . Overload Shots . | . . Overflow Damage 14 | . 14 Projectiles . | . . Explosions . | . . Melee 14 | . 14 Knockbacks . | . . Impact . | . . Kinetic . | . . Secondary . | . . Self-Inflicted Damage . | . . Shots . | . . Rammed . | . . Targets Rammed . | . . Kicked . | . . Crushed . | . . Highest Temperature . | . . Average Temperature . | . . Received Heat Transfer 258 | . 258 Siege Activations . | . . Martial Activations . | . . Shielding Activations . | . . Robots Disrupted . | . . Combat Hostiles . | . . Robots Corrupted . | . . Combat Hostiles . | . . Parts Fried . | . . Impact Corruptions . | . . Robots Melted . | . . Combat Hostiles . | . . Parts Melted . | . . Heat Transferred . | . . Parts Sabotaged . | . . Parts Stolen . | . . Parts Stripped . | . . Power Chain Reactions . | . . Alert | -11 -10 ------- Run | Yrd Mat Maximum Alert Level . | . . Low Security (%) 100 | 100 100 Level 1 . | . . Level 2 . | . . Level 3 . | . . Level 4 . | . . Level 5 . | . . High Security . | . . Max Security . | . . Peak Influence 110 | 10 110 Initial . | . . Average 27 | 1 35 Influence Increases 195 | 20 175 Destroy 0b10 Robot/C 140 | . 140 Destroy 0b10 Robot/NC 25 | 20 5 Destroy Leader 30 | . 30 Influence Decreases 195 | 20 175 Time Decay 148 | 20 128 Lost Part 47 | . 47 Squads Dispatched 3 | . 3 Investigation 1 | . 1 Extermination . | . . Reinforcement 2 | . 2 Assault . | . . Garrison . | . . Intercept . | . . Searches Triggered . | . . Construction Impeded . | . . Haulers Reinforced . | . . Active Scanning Responses . | . . Cargo Convoy Interrupts . | . . Stealth | -11 -10 --------- Run | Yrd Mat Distress Signals . | . . Communications Jammed . | . . Distress Signals . | . . Times Spotted 15 | . 15 Peak Tracking Total 6 | . 6 Tactical Retreats . | . . Traps | -11 -10 ------- Run | Yrd Mat Traps Triggered 3 | . 3 Indirectly . | . . Trap Hack Attempts . | . . Triggered . | . . Disarmed . | . . Reprogrammed . | . . Reused . | . . Traps Extracted . | . . Installed . | . . Triggered . | . . Machines | -11 -10 ---------- Run | Yrd Mat Machines Disabled . | . . Max in Single Turn . | . . Machines Repaired . | . . Machines Dismantled . | . . Machines Sabotaged . | . . Overloaded Fab Kills . | . . Hacking | -11 -10 --------- Run | Yrd Mat Machines Accessed . | . . Terminals . | . . Fabricators . | . . Repair Stations . | . . Recycling Units . | . . Scanalyzers . | . . Garrison Access . | . . Total Hacks . | . . Successful . | . . Failed . | . . Catastrophic . | . . Database Lockouts . | . . Manual . | . . Terminals . | . . Fabricators . | . . Repair Stations . | . . Recycling Units . | . . Scanalyzers . | . . Garrison Access . | . . Terminal Hacks . | . . Fabricator Hacks . | . . Repair Station Hacks . | . . Recycling Unit Hacks . | . . Scanalyzer . | . . Garrison Access Hacks . | . . Unauthorized Hacks . | . . Terminals . | . . Fabricators . | . . Repair Stations . | . . Recycling Units . | . . Scanalyzers . | . . Garrison Access . | . . Data Cores Recovered . | . . Used . | . . Hacking Detections . | . . Full Trace Events . | . . Feedback Events . | . . Feedback Blocked . | . . Robot Schematics Acquired . | . . Robots Built . | . . Authchips . | . . Time . | . . Total Robot Build Rating . | . . Part Schematics Acquired . | . . Parts Built . | . . Authchips . | . . Time . | . . Total Part Build Rating . | . . Parts Repaired . | . . Time . | . . Parts Recycled . | . . Recycled Matter . | . . Retrieved Matter . | . . Retrieved Components . | . . Parts Scanalyzed . | . . Part Schematics Acquired . | . . Parts Damaged . | . . Bothacking | -11 -10 ------------ Run | Yrd Mat Used RIF Installer . | . . Robots Hacked . | . . Non-combat . | . . Combat . | . . Robot Hacks Applied . | . . Relay Couplers Released . | . . Fabnet Peak Effective % . | . . Robots Rewired . | . . Allies Hacked . | . . Hacks Repelled . | . . Allies | -11 -10 -------- Run | Yrd Mat Total Allies . | . . Largest Group . | . . Highest-Rated Group . | . . Highest-Rated Ally . | . . Total Orders . | . . Ally Attacks . | . . Total Damage . | . . Kills . | . . Allies Corrupted . | . . Allies Melted . | . . Intel | -11 -10 ------- Run | Yrd Mat Active Infowar (turns) 500 | 6 494 Terrain 500 | 6 494 Robot Analysis Total . | . . Derelict Logs Recovered . | . . Drone Launches . | . . Drone Recoveries . | . . Exploration | -11 -10 ------------- Run | Yrd Mat Turns Passed 688 | 167 521 Spaces Moved 381 | 84 297 Core 11 | 8 3 Treads 228 | 76 152 Legs . | . . Wheels . | . . Hover . | . . Flight 142 | . 142 Fastest Speed 37 | 50 37 Average Speed 134 | 150 130 Slowest Speed 250 | 160 250 Overloaded Moves . | . . Propulsion Burnouts . | . . Robots Hopped . | . . Potential Cave-ins . | . . Cave-ins Triggered . | . . Exploration Rate (%) 22 | 5 40 Regions Visited 1 Branch Regions . Pre-discovered Areas . | . . Known Exits Taken . | . . Unknown Exits Taken 1 | 1 . Scrap Searched . | . . Spaces Dug . | . . Terrain Destroyed . | . . Melee . | . . Projectile . | . . AOE . | . . Terrain Rammed . | . . Walls Destroyed . | . . Machines Disabled . | . . Actions | -11 -10 --------- Run | Yrd Mat Total 480 | 102 378 Wait 15 | . 15 Move 380 | 83 297 Hop . | . . Pick Up 7 | . 7 Fast Attach 16 | 7 9 Attach 3 | . 3 Detach 4 | . 4 Swap 4 | . 4 Drop 4 | . 4 Fire 32 | 12 20 Melee 15 | . 15 Ram . | . . Kick . | . . Crush . | . . Escape Stasis . | . . Rewire . | . . Trap . | . . Miscellaneous . | . . Route ------- -11/Scrapyard -10/Materials (discovered 1 exit: [*Mat]) History --------- Turn | Location | Event 7 | -11/Scrapyard | Discovered new exit (range 16) 168 | -11/Scrapyard | Entered Materials 305 | -10/Materials | Build established: Mutant 643 | -10/Materials | Core integrity fell below 50% 673 | -10/Materials | Discovered new exit (range 6) 678 | -10/Materials | Core integrity fell below 20% 689 | -10/Materials | Destroyed by G-34 Mercenary with Small Laser Last Messages --------------- recycling unit. 00582_ K-01 Serf collects debris. 00598_ R-06 Scavenger collects Sml. Laser. 00609_ ALERT: Hostiles spotted, dispatching reinforcements to Terminal M003. 00615_ Acquired Datajack. 00623_ Dropped Lgt. Ion Engine. 00624_ Dropped Ion Engine. 00625_ Acquired Lgt. Ion Engine. 00649_ Flight Unit destroyed. 00652_ Triggered Alarm Trap. 00652_ An alarm sounds. 00652_ ALERT: Alarm triggered, dispatching investigation squad. 00656_ U-05 Engineer lays Concrete. 00657_ Lgt. Ion Engine destroyed. 00658_ U-05 Engineer lays Concrete. 00673_ EXIT=FOUND 00679_ Imp. Terrain Scanner destroyed. 00687_ Flight Unit destroyed. Map ----- +----------------------------------------------------+ | ???????????????????????????# # ## | | ?????????#/#####?#????????## ####/#### | | ?????????# ?######### ### #### "T" | | ?????????# # % """ | | ?????????# # | | ?????????# + | | ?????????# # ## ##########"T"##### | | ?????????? ???# ########????????#"""#???# | | ??????????????????# #???#????#??????#####???# | | ??????????????????# #?#?????#???????#??##???# | | ??????????????????# #???????????????????#?#?# | | ???????????????#+## #???""????????#?#??####?# | | ???????????#???# ###""??????????????? | | ???????????????# #"????????????#???? | | ???????????????# +??? ? ??#?????????""" | | ???????????????# g #"????????#??#?#?# ?"" | | ???????????????# #### #????? ?#???#?????""" | | ?????????????###+##+####ggg#????? ???#??????#? | | ?????????????# # # ? ?? ???#??#?? | | ?????????????# # #?#??????######??# ? | | ?????????????# + #?#?#???## ##?##??#? | | ?????????????# # ##??????#" #???????? | | ?????????????########### #??????##T #??###### | | ???????????????????? ??# #?????#?#" #### | | ????????????????? ?????# #?????#?## + | | ????????#?????#????????+ @ #????????# #### | | ???????????#???????????# < #???#????# ##?# | | ???????????????????????# #???#????# #### | | ???????????????????????#####????????# #?## | | ????????????????????????????#???????######??# ## | | ??????????????????????????????????????##????# #? | | ???????????????????????????????????#????######+### | | ????????????????????????????????????????# | | ????????????????????????#?#????????????## """ | | ??????????????????????????????????????#?# """ | | ???????????????????????????????????#?#??# """ | | ?????????????????????????????????#??????# | | ??????????????????????????????????##????########## | | | | | | | | | | | | | | | | | | | | | | | | | +----------------------------------------------------+ Best States ------------- Heat Dissipation 25 Energy Generation 10 Energy Capacity 250 Matter Stores 300 Matter Capacity 300 Sight Range 16 Terrain Scan Range 16 Terrain Scan Density 10 Evasion (%) 62 Recoil Reduction 2 Item Schematics ----------------- None Robot Schematics ------------------ None Fabricated ------------ Nothing Repaired ---------- Nothing Alien Tech Used ----------------- None Achievements -------------- None Challenges ------------ None Game ------ Seed MomentumArchitectSuit Manual? 0 Play Time 00:07:11 Cumulative 20.1 hours Start 2025.08.26 @ 23:22:44 End 2025.08.26 @ 23:27:03 Sessions 1 Manual Loads 0 Difficulty Rogue Special Mode None Game No. 70 Rogue 70 Adventurer 0 Explorer 0 Win Type - Total 0 Types 0/0/0/0/0/0/0/0/0/0 Lore% 10 Gallery% 24 Achievement% 23 Wizard Run 0 Options --------- Layout 1 ASCII 0 Keyboard 1 Movement Vi Keybinds 0 Fullscreen 1 Font 16/SmallcapsGlow Map View 55x38 Zoom Use 0% Tactical HUD 1 Map Filters NONE Filters NONE Steam 1 RUN: f0d1ed00-b28b-4b2f-8677-73e4148fa319